Cogmind - Beta 13 @@@ ROGUE MODE // 2024.05.28 @ 10:58:48 Player: Dosh Result: Destroyed by X-57 Shotgunner with Shotgun Performance ------------- Evolutions (2) 1000 Regions Visited (4) 800 Robots Destroyed (90) 450 Value Destroyed (2609) 2609 Prototype IDs (15) 300 Alien Tech Used (0) 0 Bonus (266) 266 TOTAL SCORE: 5425 Bonus ------- High Alert Combat Kills 66 Entered Garrisons 200 Cogmind --------- Core Integrity 0/550 Matter 280/300 Energy 150/150 System Corruption 0% Temperature Cool (0) Movement Walking (200) Ox1 Location -8/Garrison Parts ------- > --- POWER (1) -------- Micro Fission Core > --- PROPULSION (3) --- Cargo Legs > --- UTILITY (4+1) ---- Huge Storage Unit Improved Utility Shielding Hacking Suite (+) > --- WEAPON (3) ------- Ripper Makeshift Sword > --- INVENTORY (25) --- Ion Engine Light Ion Engine Light Treads Light Treads Light Treads Advanced Treads Carbon-fiber Leg High-capacity Matter Pod (200) Structural Scanner Terrain Scanner Transmission Jammer Improved Transmission Jammer Medium Reactive Plating Medium Reactive Plating System Restoration Module Mining Laser Peak State ------------ > --- POWER ------------ Deuterium Engine > --- PROPULSION ------- Carbon-fiber Leg Cargo Legs > --- UTILITY ---------- Improved Heat Sink Huge Storage Unit Heavy Armor Plating Medium Reactive Plating Hacking Suite > --- WEAPON ----------- Assault Cannon Heavy Assault Cannon > --- INVENTORY -------- Ion Engine Light Ion Engine Light Treads Light Treads Light Treads Advanced Treads Carbon-fiber Leg High-capacity Matter Pod Structural Scanner Terrain Scanner Transmission Jammer Hardened Light Armor Plating Hardened Light Armor Plating Hardened Light Armor Plating Medium Reactive Plating System Restoration Module EM Pulse Cannon Gauss Rifle Battle Cannon Mining Laser Ripper Makeshift Sword [Rating: 53] Favorites ----------- Power Light Ion Engine Engine Light Ion Engine Power Core Micro Fission Core Propulsion Light Treads Treads Light Treads Leg Cargo Legs Wheel Compact Wheel Utility Large Storage Unit Device Power Bank Storage Large Storage Unit Processor Advanced Targeting Computer Hackware Hacking Suite Protection Heavy Armor Plating Weapon Assault Rifle Energy Gun EM Pulse Gun Energy Cannon EM Pulse Cannon Ballistic Gun Assault Rifle Ballistic Cannon Assault Cannon Launcher Grenade Launcher Special Weapon Mining Laser Slashing Weapon Makeshift Sword Build | -11 -10 -10 -8 -8 ------- Run | Yrd Mat Sub Mat Gar Slots Evolved 4 | . . . 4 . Power . | . . . . . Propulsion 1 | . . . 1 . Utility 2 | . . . 2 . Weapon 1 | . . . 1 . Parts Attached 85 | 6 6 18 43 12 Power 8 | 1 1 . 5 1 Engine 7 | 1 1 . 5 . Core 1 | . . . . 1 Reactor . | . . . . . Propulsion 11 | 2 1 1 7 . Treads 3 | 2 1 . . . Leg 2 | . . . 2 . Wheel 6 | . . 1 5 . Hover . | . . . . . Flight . | . . . . . Utility 35 | 1 2 8 18 6 Device 13 | . . 5 5 3 Storage 4 | 1 1 . 2 . Processor 1 | . . . 1 . Hackware 1 | . . . 1 . Protection 16 | . 1 3 9 3 Artifact . | . . . . . Weapon 31 | 2 2 9 13 5 Energy Gun 1 | 1 . . . . Energy Cannon 4 | . . . 3 1 Ballistic Gun 13 | 1 1 3 6 2 Ballistic Cannon 4 | . . 1 3 . Launcher 3 | . . 3 . . Special Weapon 2 | . 1 1 . . Impact Weapon . | . . . . . Slashing Weapon 4 | . . 1 1 2 Piercing Weapon . | . . . . . Special Melee Weapon . | . . . . . Unidentified Prototypes . | . . . . . Parts Lost 24 | . . 6 7 11 Power 4 | . . 1 2 1 Propulsion 5 | . . 2 2 1 Utility 5 | . . . 1 4 Weapon 10 | . . 3 2 5 Highest Loss Streak 8 | . . 2 2 8 To Critical Strikes 1 | . . . 1 . Average Slot Usage (%) 82 | . 89 80 81 79 Engine 11 | . 14 9 12 5 Treads 12 | . 27 19 . . Leg 3 | . . . 6 13 Wheel 4 | . . 1 11 . Device 6 | . . 11 7 7 Storage 10 | . 14 12 7 7 Hackware 1 | . . . 3 7 Protection 6 | . 4 1 10 15 Energy Gun 2 | . 10 . . . Ballistic Gun 12 | . 17 16 7 8 Ballistic Cannon 4 | . . . 10 6 Slashing Weapon 1 | . . 2 . 4 Naked Turns . | . . . . . Heaviest Build 145 | 14 34 34 142 145 Greatest Support 70 | 40 40 40 70 70 Greatest Overweight (x) 9 | . . 9 3 2 Average Overweight (x) . | . . . 1 1 Largest Inventory Capacity 25 | 8 15 15 25 25 Average Capacity 19 | 7 14 15 23 25 Most Carried 25 | 2 15 15 25 21 Average Carried 16 | 1 9 14 20 17 Final Capacity 25 | 8 15 15 25 25 Final Carried 21 | 2 15 15 21 16 Class Distribution -------------------- 56% | Mutant 22% | Scavenger-Tank 9% | Gunner 7% | Tank Dominant Class ---------------- Mutant | -10/Materials Mutant | -10/Subcaves Scavenger-Tank | -8/Materials Scavenger-Tank | -8/Garrison Resources | -11 -10 -10 -8 -8 ----------- Run | Yrd Mat Sub Mat Gar Matter Collected 3037 | 260 141 770 1478 388 Remotely . | . . . . . Salvage Created 2931 | . 374 401 1516 640 Parts 172 | . 27 20 97 28 Haulers Intercepted 3 | . 1 . 2 . Recyclers Shooed 5 | . . . 5 . Parts Field Recycled . | . . . . . Retrieved Matter . | . . . . . Parts Self-Destructed 19 | . . 19 . . Prevented . | . . . . . Kills | -11 -10 -10 -8 -8 ------- Run | Yrd Mat Sub Mat Gar Combat Hostiles Destroyed 67 | . 9 11 33 14 Melee 2 | . . . . 2 Guns 31 | . 7 8 8 8 Cannons 29 | . . . 25 4 AOE 5 | . 2 3 . . Classes Destroyed 13 | . 5 1 5 2 Worker 6 | . 2 . 4 . Builder 3 | . . . 3 . Hauler 3 | . 1 . 2 . Recycler 5 | . . . 5 . Operator 1 | . . . 1 . Watcher 5 | . 3 . 2 . Swarmer 17 | . 6 . 11 . Grunt 26 | . 3 2 12 9 Duelist 1 | . . . . 1 Sentry 12 | . . . 9 3 Hunter 1 | . . . 1 . Programmer 1 | . . . . 1 Subdweller 9 | . . 9 . . Best Kill Streak 9 | . 3 2 9 3 Combat Bots Only 4 | . 2 2 4 3 Max Kills in Single Turn 2 | . 2 1 2 1 Gunslinging . | . . . . . Exploded 2 | . 2 1 . . Melee 1 | . . . . 1 Uniques/NPCs Destroyed . | . . . . . Combat | -11 -10 -10 -8 -8 -------- Run | Yrd Mat Sub Mat Gar Hostile Shots Fired 431 | . 31 61 163 176 Missed 119 | . 9 14 44 52 Damage Taken 4773 | . 194 1136 1510 1933 Core 784 | . 31 203 165 385 Absorbed by Shields . | . . . . . Redirected to Shielding 58 | . . . . 58 Ignored by Resistances 67 | . . . 63 4 Regen/Repaired (Parts) 41 | . 41 . . . Core Remaining (%) 53 | 100 . 6 . . Volleys Fired 251 | . 45 49 119 38 Largest 3 | . 2 2 3 3 Hottest 123 | . 100 120 123 114 Shots Fired 551 | . 77 87 288 99 Gun 365 | . 72 60 168 65 Cannon 159 | . . 5 120 34 Launcher 11 | . . 11 . . Special 16 | . 5 11 . . Kinetic 478 | . 40 65 284 89 Thermal 16 | . 5 11 . . Explosive 11 | . . 11 . . Electromagnetic 46 | . 32 . 4 10 Robot Hit Streak 29 | . 7 27 29 13 Robot Miss Streak 6 | . 4 1 5 6 Penetration Max 1 | . . . . 1 Secondary Targets 3 | . 1 . 1 1 Max Gunslinging Chain 1 | . 1 . 1 1 Shots Hit Robots 342 | . 39 60 173 70 Core Hits 142 | . 16 22 76 28 Critical Kills 1 | . . . . 1 Critical Parts Destroyed 2 | . 1 . . 1 Critical Strikes 16 | . 2 2 9 3 Destroy 5 | . 1 2 . 2 Blast 8 | . . . 8 . Corrupt 2 | . 1 . 1 . Sever 1 | . . . . 1 Melee Attacks 42 | . . 26 4 12 Impact . | . . . . . Slashing 42 | . . 26 4 12 Piercing . | . . . . . Sneak Attacks . | . . . . . Combat Hostiles . | . . . . . Follow-up Attacks 1 | . . . . 1 Damage Inflicted 7765 | . 804 1227 4149 1585 Guns 2962 | . 572 580 1017 793 Cannons 3743 | . . 72 3089 582 Explosions 812 | . 205 575 . 32 Melee 178 | . . . . 178 Ramming 70 | . 27 . 43 . Kinetic 6140 | . 249 652 4035 1204 Thermal 237 | . 205 . . 32 Explosive 575 | . . 575 . . Electromagnetic 565 | . 323 . 71 171 Impact . | . . . . . Slashing 178 | . . . . 178 Piercing . | . . . . . Highest Corruption 3 | . 3 3 2 1 Average Corruption 2 | . 2 3 1 1 Corruption Purged 3 | . . . 2 1 Corruption Blocked . | . . . . . Effects 82 | . 18 37 26 1 Message Errors 18 | . 5 9 4 . Matter Fused 18 | . 5 9 4 . Heat Flow Errors 14 | . 2 6 6 . Energy Discharges 7 | . 2 3 2 . Parts Rejected 1 | . . . 1 . Parts Fused 1 | . . 1 . . Data Loss (minor) 6 | . 2 2 2 . Data Loss (major) 6 | . . 3 3 . Misfires 7 | . 1 3 2 1 Alerts 1 | . 1 . . . Weapon Failures 3 | . . 1 2 . Overload Shots . | . . . . . Overflow Damage 297 | . 60 . 205 32 Projectiles 228 | . . . 205 23 Explosions 60 | . 60 . . . Melee 9 | . . . . 9 Knockbacks 19 | . . 2 16 1 Impact 2 | . . . 2 . Kinetic 17 | . . 2 14 1 Secondary . | . . . . . Self-Inflicted Damage 41 | . . . . 41 Shots 1 | . . . . 1 Rammed 6 | . 5 . 1 . Targets Rammed 10 | . 6 . 4 . Kicked 3 | . . . 3 . Crushed 1 | . 1 . . . Highest Temperature 484 | . 118 267 484 290 Average Temperature 96 | . 45 109 104 94 Received Heat Transfer 2074 | . 24 511 657 882 Effects 13 | . . 2 9 2 Shutdowns 4 | . . . 4 . Energy Bleed 1 | . . . 1 . Interference 7 | . . 2 3 2 Damage (minor) 1 | . . . 1 . Siege Activations . | . . . . . Robots Corrupted . | . . . . . Combat Hostiles . | . . . . . Parts Fried . | . . . . . Impact Corruptions . | . . . . . Robots Melted . | . . . . . Combat Hostiles . | . . . . . Parts Melted 1 | . . 1 . . Heat Transferred 250 | . 200 . . 50 Parts Sabotaged . | . . . . . Parts Stolen . | . . . . . Parts Stripped . | . . . . . Power Chain Reactions 3 | . 2 . . 1 Alert | -11 -10 -10 -8 -8 ------- Run | Yrd Mat Sub Mat Gar Peak Influence 457 | . 327 . 409 457 Initial 152 | . . . . 152 Average 175 | . 148 . 153 338 Maximum Alert Level 2 | . 1 . 2 2 Low Security (%) 66 | 100 69 . 76 15 Level 1 27 | . 30 . 22 47 Level 2 5 | . . . 1 37 Level 3 . | . . . . . Level 4 . | . . . . . Level 5 . | . . . . . High Security . | . . . . . Max Security . | . . . . . Squads Dispatched 11 | . 3 . 8 . Investigation 7 | . 3 . 4 . Extermination . | . . . . . Reinforcement 1 | . . . 1 . Assault . | . . . . . Garrison 3 | . . . 3 . Intercept . | . . . . . Searches Triggered . | . . . . . Construction Impeded . | . . . . . Haulers Reinforced . | . . . . . Active Scanning Responses . | . . . . . Cargo Convoy Interrupts . | . . . . . Stealth | -11 -10 -10 -8 -8 --------- Run | Yrd Mat Sub Mat Gar Distress Signals 7 | . . . 6 1 Communications Jammed . | . . . . . Distress Signals . | . . . . . Times Spotted 95 | . 21 12 43 19 Peak Tracking Total 7 | . 4 3 7 5 Tactical Retreats 7 | . 5 . 1 1 Traps | -11 -10 -10 -8 -8 ------- Run | Yrd Mat Sub Mat Gar Traps Triggered 10 | . 2 3 5 . Indirectly . | . . . . . Trap Hack Attempts . | . . . . . Triggered . | . . . . . Disarmed . | . . . . . Reprogrammed . | . . . . . Reused . | . . . . . Traps Extracted . | . . . . . Installed . | . . . . . Triggered . | . . . . . Machines | -11 -10 -10 -8 -8 ---------- Run | Yrd Mat Sub Mat Gar Machines Disabled 4 | . 2 1 . 1 Max in Single Turn 2 | . 2 1 . 1 Machines Repaired . | . . . . . Machines Dismantled . | . . . . . Machines Sabotaged . | . . . . . Overloaded Fab Kills . | . . . . . Hacking | -11 -10 -10 -8 -8 --------- Run | Yrd Mat Sub Mat Gar Machines Accessed 24 | . 11 1 10 2 Terminals 17 | . 8 . 7 2 Fabricators . | . . . . . Repair Stations 1 | . 1 . . . Recycling Units 4 | . 2 . 2 . Scanalyzers . | . . . . . Garrison Access 1 | . . . 1 . Total Hacks 77 | . 34 9 30 4 Successful 41 | . 19 9 11 2 Failed 35 | . 14 . 19 2 Catastrophic 5 | . . . 4 1 Database Lockouts 1 | . 1 . . . Manual 40 | . 15 . 23 2 Terminals 55 | . 26 . 25 4 Fabricators . | . . . . . Repair Stations 5 | . 5 . . . Recycling Units 5 | . 3 . 2 . Scanalyzers . | . . . . . Garrison Access 3 | . . . 3 . Terminal Hacks 30 | . 13 9 6 2 Record 8 | . . 8 . . Robot Schematic 1 | . 1 . . . Robot Analysis 5 | . 4 . 1 . Prototype ID Bank 3 | . 3 . . . Alert Level 1 | . . . 1 . Unreport Threat 3 | . 1 . 2 . Patrol Status 1 | . 1 . . . Recall Investigation 1 | . . . 1 . Hauler Manifests 2 | . 1 . 1 . Registered Components 1 | . 1 . . . Zone Layout 1 | . 1 . . . Garrison Registry 1 | . . . . 1 Security Stations 1 | . . . . 1 Derelict Proto ID Bank 1 | . . 1 . . Fabricator Hacks . | . . . . . Repair Station Hacks 3 | . 3 . . . Scan Component 1 | . 1 . . . Repair 1 | . 1 . . . Refit 1 | . 1 . . . Recycling Unit Hacks . | . . . . . Scanalyzer . | . . . . . Garrison Access Hacks 1 | . . . 1 . Unlock Access 1 | . . . 1 . Unauthorized Hacks 7 | . 3 . 4 . Terminals 3 | . 1 . 2 . Botnet 2 | . 1 . 1 . Operators 1 | . . . 1 . Fabricators . | . . . . . Repair Stations . | . . . . . Recycling Units 4 | . 2 . 2 . Tunnel 4 | . 2 . 2 . Scanalyzers . | . . . . . Garrison Access . | . . . . . Data Cores Recovered . | . . . . . Used . | . . . . . Hacking Detections 17 | . 7 . 8 2 Full Trace Events 3 | . 1 . 1 1 Feedback Events . | . . . . . Feedback Blocked . | . . . . . Robot Schematics Acquired 1 | . 1 . . . Robots Built . | . . . . . Authchips . | . . . . . Time . | . . . . . Total Robot Build Rating . | . . . . . Part Schematics Acquired . | . . . . . Parts Built . | . . . . . Authchips . | . . . . . Time . | . . . . . Total Part Build Rating . | . . . . . Parts Repaired 1 | . 1 . . . Time 26 | . 26 . . . Parts Recycled . | . . . . . Recycled Matter . | . . . . . Retrieved Matter . | . . . . . Retrieved Components . | . . . . . Parts Scanalyzed . | . . . . . Part Schematics Acquired . | . . . . . Parts Damaged . | . . . . . Bothacking | -11 -10 -10 -8 -8 ------------ Run | Yrd Mat Sub Mat Gar Used RIF Installer . | . . . . . Robots Hacked . | . . . . . Non-combat . | . . . . . Combat . | . . . . . Robot Hacks Applied . | . . . . . Relay Couplers Released . | . . . . . Fabnet Peak Effective % . | . . . . . Robots Rewired . | . . . . . Allies Hacked . | . . . . . Hacks Repelled . | . . . . . Allies | -11 -10 -10 -8 -8 -------- Run | Yrd Mat Sub Mat Gar Total Allies . | . . . . . Largest Group . | . . . . . Highest-Rated Group . | . . . . . Highest-Rated Ally . | . . . . . Total Orders . | . . . . . Ally Attacks . | . . . . . Total Damage . | . . . . . Kills . | . . . . . Allies Corrupted . | . . . . . Allies Melted . | . . . . . Intel | -11 -10 -10 -8 -8 ------- Run | Yrd Mat Sub Mat Gar Robot Analysis Total 5 | . 4 . 1 . Derelict Logs Recovered 1 | . . 1 . . Drone Launches . | . . . . . Drone Recoveries . | . . . . . Exploration | -11 -10 -10 -8 -8 ------------- Run | Yrd Mat Sub Mat Gar Turns Passed 5973 | 66 1241 1856 2239 571 Spaces Moved 2766 | 37 610 916 1012 191 Core 40 | 3 . 37 . . Treads 1356 | 34 610 712 . . Legs 560 | . . . 369 191 Wheels 810 | . . 167 643 . Hover . | . . . . . Flight . | . . . . . Fastest Speed 50 | 50 160 120 103 195 Average Speed 167 | 151 160 172 160 212 Slowest Speed 500 | 160 160 500 270 265 Overloaded Moves . | . . . . . Propulsion Burnouts . | . . . . . Robots Hopped . | . . . . . Cave-ins Triggered . | . . . . . Exploration Rate (%) 50 | 4 95 51 69 33 Regions Visited 4 Branch Regions 1 Pre-discovered Areas 5 | . 2 1 2 . Known Exits Taken 1 | . . . 1 . Unknown Exits Taken 3 | 1 1 1 . . Scrap Searched 9 | . . 9 . . Spaces Dug 9 | . . 5 4 . Terrain Destroyed 91 | . 16 36 36 3 Melee 9 | . . 5 4 . Projectile 33 | . . 1 32 . AOE 49 | . 16 30 . 3 Terrain Rammed . | . . . . . Walls Destroyed . | . . . . . Machines Disabled . | . . . . . Actions | -11 -10 -10 -8 -8 --------- Run | Yrd Mat Sub Mat Gar Total 3516 | 44 789 1047 1372 264 Wait 287 | . 102 31 146 8 Move 2763 | 36 609 915 1012 191 Hop . | . . . . . Pick Up 40 | 2 14 4 19 1 Fast Attach 31 | 6 3 2 17 3 Attach 21 | . . 2 12 7 Detach 14 | . 2 . 10 2 Swap 33 | . 3 14 14 2 Drop 25 | . 5 4 15 1 Fire 251 | . 45 49 119 38 Melee 41 | . . 26 4 11 Ram 1 | . . . 1 . Kick 3 | . . . 3 . Crush 6 | . 6 . . . Escape Stasis . | . . . . . Rewire . | . . . . . Trap . | . . . . . Miscellaneous . | . . . . . Route ------- -11/Scrapyard -10/Materials (discovered 5 exits: [*Mat x2] / [*Min x2] / *Sub) -10/Subcaves (discovered 2 exits: *Mat x2) -8/Materials (discovered 3 exits: [*Fac x2] / Gar) -8/Garrison (discovered 3 exits: [Mat x3]) History --------- Turn | Location | Event 43 | -11/Scrapyard | Discovered new exit (range 15) 67 | -11/Scrapyard | Entered Materials 257 | -10/Materials | Discovered new exit (range 15) 309 | -10/Materials | Build established: Mutant 536 | -10/Materials | Discovered new exit (range 8) 675 | -10/Materials | Discovered new exit (range 14) 761 | -10/Materials | Central database locked down 766 | -10/Materials | Discovered new exit (range 14) 889 | -10/Materials | Repaired Lgt. Treads 1302 | -10/Materials | Discovered new exit (range 3) 1308 | -10/Materials | Entered Subcaves 1478 | -10/Subcaves | Discovered new exit (range 10) 1716 | -10/Subcaves | Discovered new exit (range 13) 1802 | -10/Subcaves | Visited 4L-MR0's lab 1821 | -10/Subcaves | Found Cargo Legs 2195 | -10/Subcaves | Shifting Twisted Machinery released Sub. Optics 2201 | -10/Subcaves | Shifting Twisted Machinery released Battle Cannon 2470 | -10/Subcaves | Learned location of Zion (-6) 2470 | -10/Subcaves | Met a Zionite searching for "candidates" 2538 | -10/Subcaves | A Subdweller sparked back to life 2538 | -10/Subcaves | A Subdweller sparked back to life 2538 | -10/Subcaves | A Subdweller sparked back to life 2539 | -10/Subcaves | Core integrity fell below 50% 2567 | -10/Subcaves | Found Power Bank 2569 | -10/Subcaves | Attached Power Bank, gained temporary slots: Power x3 2744 | -10/Subcaves | Disturbed a concealed Subdweller 2745 | -10/Subcaves | Core integrity fell below 20% 3164 | -10/Subcaves | Entered Materials 3164 | -8/Materials | Evolved 4 slots: Propulsion x1, Utility x2, Weapon x1 3694 | -8/Materials | Build established: Scavenger-Tank 3992 | -8/Materials | Discovered new exit (range 3) 4358 | -8/Materials | Attached Cargo Legs, gained temporary slots: Utility x2 4437 | -8/Materials | Build established: Gunner 4973 | -8/Materials | Garrison activated, responded to threat 4992 | -8/Materials | Build established: Tank 5194 | -8/Materials | Discovered new exit (range 13) 5403 | -8/Materials | Identified exit to Garrison 5403 | -8/Materials | Entered Garrison 5425 | -8/Garrison | Build established: Scavenger-Tank 5455 | -8/Garrison | Triggered checkpoint 5492 | -8/Garrison | Learned Materials security intel 5492 | -8/Garrison | Discovered new exit (range 35) 5492 | -8/Garrison | Discovered new exit (range 63) 5492 | -8/Garrison | Discovered new exit (range 77) 5683 | -8/Garrison | Triggered checkpoint 5719 | -8/Garrison | Triggered checkpoint 5766 | -8/Garrison | Triggered checkpoint 5800 | -8/Garrison | Core integrity fell below 50% 5841 | -8/Garrison | Core integrity fell below 20% 5862 | -8/Garrison | Lost 8 parts (1p1n3u3w) 5974 | -8/Garrison | Destroyed by X-57 Shotgunner with Shotgun Last Messages --------------- 05820_ Mak. Sword follow-up attack on G-47 Trooper. 05822_ Destroyed Imp. Heat Sink. 05823_ G-47 Trooper misfires. 05826_ Critical hit (Burn: +37). 05827_ Hvy. Assault Rifle destroyed. 05829_ G-47 Trooper misfires. 05831_ Carbon-fiber Leg destroyed. 05838_ G-47 Trooper IFF system glitched. 05842_ G-47 Trooper destroyed. 05856_ Acquired 44 matter. 05868_ Acquired 52 matter. 05878_ G-47 Trooper destroyed. 05934_ Connecting with Garrison Terminal... 05956_ Acquired Unknown Device. 05956_ Identified Recoil Nullifier. 05958_ Dropped Recoil Nullifier. 05961_ Acquired Imp. Transmission Jammer. 05964_ Acquired Mic. Fission Core. 05966_ W-25 Informer springs to life. 05966_ W-25 Informer sends out distress signal. Map ----- +----------------------------------------------------+ | #???????????????????????????????????????????? | | #???????????????????????????????????????????? | | #???????????????????????????????????????????? | | #???????????????????????????????????????????? | | #???????????????????????????????????????????? | | ????????????????????????????????????????????? | | ???#####????????????????????????????????????? | | ???# #????????????????????????????????????? | | ####"""#######??????????????????????????????? | | #??????????????????????????????? | | ######+#### #??????????????????????????????? | | ""#???# #??# #??????????????????????????????? | | ###???# #??# #???#####??????????????????????? | | ??????# #??# #???# #??????????????????????? | | ??????# #### ##### < #??????????????????????? | | ??????# + #??????????????????????? | | ??????#### #??????????????????????? | | ?????????# ##########??????????????????????? | | ?????????# #???????????????????????????????? | | ?????????# #???????????????????????????????? | | ?????????# ##??############????????????????? | | ########## T#??#""""""""""#????????????????? | | + #####"||=!*/"""#????????????????? | | ######### + ^ ""#????????????????? | | #???????# " +++w ="#????????????????? | | #???????# ### + x ^@"#????????????????? | | "##??????# #?# + x ]"#????????????????? | | ######## #?# //xx !"#????????????????? | | #?# ^ ""#????????????????? | | %! #?###"!]! !"""#????????????????? | | ###########???#""""""""""#????????????????? | | ###???????????############????????????????? | | #???????????????????????????????????????? | | [ #???????????????????????????????????????? | | = ########################????????????????? | | [!= + + #????????????????? | | =%####### ########## ## ## #????????????????? | | =*#######+##??????##+##+##+#???########?????? | | #??????#[ #[ #! #???# T# #?????? | | #??????#[ #[ #! #???# " #?????? | | ####### #??????#[ #[ #! #???# " #?????? | | "#?????# #??????## ## ## #???# ####?????? | | ##?????# ######### ## ## ###### ##????????? | | #??????# + + #?????????? | | #??????# ##### ######+######## #?????????? | | #??????# #???# #????# #??????# ####??????? | | #??????# #???# ##???# #????### # "#??????? | | #??????# #???# #???# #????# " + "#??????? | | ######## ##### ######+#????# " + "#??????? | | #????# " + "#??????? | +----------------------------------------------------+ Best States ------------- Heat Dissipation 45 Energy Generation 25 Energy Capacity 275 Matter Stores 300 Matter Capacity 300 Sight Range 16 Terrain Scan Density 10 Jamming Range 12 Armor Coverage 825 Resistance: KI 30 Utility Shielding 66 Evasion (%) 40 Targeting Accuracy 8 Recoil Reduction 2 Offensive Hacking 10 Item Schematics ----------------- None Robot Schematics ------------------ M-13 Machinist | -10/Materials | Hacked Fabricated ------------ Nothing Alien Tech Used ----------------- None Achievements -------------- None Challenges ------------ None Game ------ Seed GrenadePlatingMicroactuators Manual? 0 Play Time 00:31:56 Cumulative 395.7 hours Start 2024.05.28 @ 10:28:25 End 2024.05.28 @ 10:58:48 Sessions 1 Manual Loads 0 Difficulty Rogue Special Mode None Game No. 245 Rogue 245 Adventurer 0 Explorer 0 Win Type - Total 24 Types 16/2/3/1/1/0/0/1/0 Lore% 85 Gallery% 87 Achievement% 81 Wizard Run 0 Options --------- Layout 0 ASCII 0 Keyboard 1 Movement Numpad Keybinds 0 Fullscreen 2 Font 18/SmallcapsGlow Map View 76x50 Zoom Use 0% Tactical HUD 1 Map Filters NONE Filters NONE Steam 1 RUN: a4d4aa7f-6392-4ec8-8b01-ce59c4d57468